bitfinex/quotes_ETHUSD_20240722
["timestamp","ask_amount","ask_price","bid_price","bid_amount"]
[1721654775968,0.35,3497.2,3496.6,2.85986]
[1721654776304,2.85935,3497.3,3496.6,2.85986]
[1721654776517,2.85943,3497.2,3496.7,2.85982]
[1721654776666,2.85943,3497.2,3496.5,2.85999]
[1721654776667,5.71893,3497.2,3496.5,2.85993]
[1721654776867,2.85943,3497.2,3496.5,2.85993]
[1721654777108,2.85958,3497.1,3496.5,2.85993]
[1721654777629,2.85993,3496.6,3496.3,7.4602006]
[1721654777806,8.21066,3496.4,3496.3,0.1502006]
[1721654778316,8.56066,3496.4,3496.3,0.1502006]
[1721654780291,5.70058,3496.4,3496.3,0.1502006]
[1721654780495,5.920638,3496.4,3496.3,0.1502006]
[1721654780713,2.86008,3496.4,3496.3,0.1502006]
[1721654781018,2.85979,3496.8,3496.3,0.1502006]
[1721654781186,2.86,3496.5,3496.3,0.1502006]
[1721654782184,2.85997,3496.6,3496.3,0.1502006]
[1721654782384,0.571976,3496.5,3496.3,0.1502006]
[1721654782579,0.02895189,3496.5,3496.3,0.1502006]
[1721654782901,3.0,3496.7,3496.3,0.1502006]
[1721654783101,0.02893031,3496.4,3496.3,0.1502006]
[1721654783307,2.85996,3496.6,3496.3,0.1502006]
[1721654783517,0.02893031,3496.4,3496.3,0.1502006]
[1721654783694,3.0,3496.7,3496.3,0.1502006]
[1721654783897,0.02893031,3496.4,3496.3,0.1502006]
[1721654784091,5.19611,3497.0,3496.3,0.1502006]
[1721654784324,2.85973,3496.9,3496.3,0.1502006]
[1721654784491,0.35,3497.0,3496.5,2.85997]
[1721654784816,3.7144455,3497.1,3496.6,2.85991]
[1721654784817,0.8549355,3497.1,3496.6,2.85991]
[1721654784976,4.0644555,3497.1,3496.6,2.85991]
[1721654785522,3.7144555,3497.1,3496.5,2.85998]
[1721654786081,3.7144555,3497.1,3496.3,0.1502006]
[1721654786082,2.85961,3497.0,3496.3,3.0103006]
[1721654786439,2.85961,3497.0,3496.4,2.86006]
[1721654786978,2.85991,3496.7,3496.3,0.1502006]
[1721654787290,2.8599,3496.7,3496.3,0.1502006]
[1721654787619,2.85971,3496.9,3496.3,0.1502006]
[1721654787828,3.20968,3496.9,3496.3,0.1502006]
[1721654787981,2.85968,3496.9,3496.3,3.0103106]
[1721654788518,2.85976,3496.8,3496.3,3.0103106]
[1721654789003,2.85976,3496.8,3496.3,0.1502006]
[1721654790889,0.75398301,3497.0,3496.3,5.3818606]
[1721654791089,2.85968,3496.9,3496.3,5.3818606]
[1721654792584,2.85968,3496.9,3496.3,0.1502006]
[1721654792817,2.85998,3496.6,3496.3,0.1502006]
[1721654793026,2.86,3496.5,3496.3,0.1502006]
[1721654793408,2.86008,3496.4,3496.3,0.1502006]
[1721654795305,2.85998,3496.6,3496.3,0.1502006]
[1721654795650,0.285998,3496.5,3496.3,0.1502006]
[1721654797037,2.86008,3496.4,3496.3,0.1502006]
[1721654797534,2.88808469,3496.4,3496.3,0.1502006]
[1721654798150,5.74816469,3496.4,3496.3,0.1502006]
[1721654798453,6.09816469,3496.4,3496.3,0.1502006]
[1721654798625,7.02256596,3496.4,3496.3,0.1502006]
[1721654801856,6.67256596,3496.4,3496.3,0.1502006]
[1721654807018,14.81784596,3496.4,3496.3,0.1502006]
[1721654807226,15.16784596,3496.4,3496.3,0.1502006]
[1721654807724,10.02256596,3496.4,3496.3,0.1502006]
[1721654810270,12.88264596,3496.4,3496.3,0.1502006]
[1721654814727,10.02256596,3496.4,3496.3,0.1502006]
[1721654816765,14.37033647,3496.4,3496.3,0.1502006]
[1721654816969,12.88264596,3496.4,3496.3,0.1502006]
[1721654817188,10.02256596,3496.4,3496.3,0.1502006]
[1721654818455,14.37186399,3496.4,3496.3,0.1502006]
[1721654818968,14.37199394,3496.4,3496.3,0.1502006]
[1721654819126,18.21244596,3496.4,3496.3,0.1502006]
[1721654819327,18.50906698,3496.4,3496.3,0.1502006]
[1721654819535,20.29612861,3496.4,3496.3,0.1502006]
[1721654820373,17.28312861,3496.4,3496.3,0.1502006]
[1721654820533,15.49606698,3496.4,3496.3,0.1502006]
[1721654820754,12.63598698,3496.4,3496.3,0.1502006]
[1721654822987,10.31918698,3496.4,3496.3,0.1502006]
[1721654823986,13.17926698,3496.4,3496.3,0.1502006]
[1721654824288,17.29193475,3496.4,3496.3,0.1502006]
[1721654824493,23.16501475,3496.4,3496.3,0.1502006]
[1721654824781,5.18516,3495.5,3494.5,2.2525]
[1721654824984,2.86141,3494.8,3494.5,2.2525]
[1721654825488,2.88792889,3494.7,3494.5,2.2525]
[1721654825840,0.02643889,3494.7,3494.5,2.2525]
[1721654826273,2.86138,3494.9,3494.5,2.2525]
[1721654826439,0.02636795,3494.6,3494.5,2.2525]
[1721654826638,2.86138,3494.9,3494.5,2.2525]
[1721654826865,0.02636795,3494.6,3494.5,2.2525]
[1721654827039,2.86138,3494.9,3494.5,2.2525]
[1721654827243,0.02636795,3494.6,3494.5,2.2525]
[1721654827438,2.86138,3494.9,3494.5,2.2525]
[1721654827674,0.02636795,3494.6,3494.5,2.2525]
[1721654827851,2.8614,3494.8,3494.5,2.2525]
[1721654828052,1.003,3495.2,3494.5,2.2525]
[1721654828053,0.02636795,3494.6,3494.5,2.2525]
[1721654828282,2.86147,3494.7,3494.2,2.4589]
[1721654828453,0.02636795,3494.6,3494.2,2.4589]
[1721654830394,2.88791795,3494.6,3494.2,2.4589]
[1721654831905,0.02636795,3494.6,3494.2,2.4589]
[1721654832188,2.86126,3495.0,3494.2,2.4589]
[1721654832397,0.02624586,3494.5,3494.2,3.4619]
[1721654832554,2.86147,3494.7,3494.2,3.4619]
[1721654832756,0.02626747,3494.6,3494.2,3.4619]
[1721654833103,0.02626747,3494.6,3494.2,6.32376]
[1721654833263,2.86137,3494.9,3494.2,6.32376]
[1721654833459,0.02631068,3494.8,3494.2,6.32376]
[1721654833658,2.88771068,3494.8,3494.2,3.4619]
[1721654834284,2.86148,3494.7,3494.2,3.4619]
[1721654834562,2.86172,3494.4,3493.9,0.14037882]
[1721654834756,0.02620264,3494.3,3493.8,1.003]
[1721654835000,1.48626599,3495.3,3493.1,12.44]
[1721654835001,1.48626599,3495.4,3494.5,2.3892]
[1721654835159,2.4803,3495.7,3494.7,1.003]
[1721654835160,3.35,3495.3,3494.7,1.003]
[1721654835501,3.35,3495.3,3495.2,2.86106]
[1721654835502,0.35,3495.3,3495.2,2.86106]
[1721654835703,2.88,3495.6,3495.2,2.86106]
[1721654836004,2.88,3495.6,3495.3,1.003]
[1721654836225,0.288,3495.5,3494.9,3.8643]
[1721654836497,2.88,3495.6,3495.1,3.86409]
[1721654837562,2.88,3495.6,3495.3,1.003]
[1721654837797,2.86051,3495.9,3495.3,1.003]
[1721654838105,5.86058,3495.8,3495.3,1.003]
[1721654838264,5.86058,3495.8,3495.1,2.86109]
[1721654839296,3.73276,3495.7,3495.0,2.86122]
[1721654839476,3.73276,3495.7,3494.8,2.3467]
[1721654839477,0.8721,3495.7,3495.1,2.86108]
[1721654839801,3.0,3495.8,3495.2,2.86106]
[1721654840096,3.35,3495.8,3495.2,2.86106]
[1721654840305,0.35,3495.8,3495.5,2.86076]
[1721654840464,3.0,3496.2,3495.9,2.86043]
[1721654840664,3.0,3496.2,3495.6,2.3221]
[1721654840665,1.02265513,3496.2,3495.6,2.3221]
[1721654840902,3.23,3496.3,3495.6,2.3221]
[1721654841070,2.88,3496.3,3496.0,2.86034]
[1721654841277,2.88,3496.3,3496.2,2.86024]
[1721654841571,2.88,3496.3,3496.2,5.72048]
[1721654841808,2.88,3496.3,3496.2,2.86024]
[1721654842007,2.88,3496.3,3496.0,2.86034]
[1721654842295,2.88,3496.3,3495.2,2.86098]
[1721654842296,3.168,3496.3,3495.7,2.86064]
[1721654842497,0.02561063,3496.2,3495.7,2.86064]
[1721654843796,0.02561063,3496.2,3495.8,2.86056]
[1721654843973,0.02561063,3496.2,3495.9,2.86043]
[1721654845100,0.47420808,3496.2,3495.9,2.86043]
[1721654845301,0.47420808,3496.2,3495.2,2.3788]
[1721654845511,0.47420808,3496.2,3496.1,5.72066]
[1721654845512,0.44859745,3496.2,3496.1,5.72066]
[1721654848422,0.35,3496.8,3496.5,2.85999]
[1721654848782,0.02581889,3496.7,3496.5,2.85999]
[1721654848972,3.74514269,3497.1,3496.5,2.85999]
[1721654849178,0.35,3496.8,3496.7,2.85977]
[1721654849426,0.0258613,3497.0,3496.8,2.85972]
[1721654849627,0.0258613,3497.0,3496.0,2.2579]
[1721654849628,0.74514269,3497.1,3496.6,2.85986]
[1721654849774,0.74514269,3497.1,3496.0,5.11823]
[1721654849775,0.29658128,3497.1,3496.0,5.11823]
[1721654849980,0.29658128,3497.1,3496.5,2.85993]
[1721654850694,2.85939,3497.3,3496.5,2.85993]
[1721654850879,3.20945,3497.2,3496.5,2.85993]
[1721654851602,0.35,3497.2,3496.5,2.85993]
[1721654851996,0.35,3497.2,3496.2,2.86023]
[1721654852183,3.0,3497.3,3496.2,2.86023]
[1721654852184,2.85965,3497.0,3496.2,2.86023]
[1721654852579,0.85966,3497.1,3496.3,2.86015]
[1721654852823,6.71918,3497.1,3496.3,2.86015]
[1721654853002,7.06918,3497.1,3496.3,2.86015]
[1721654853206,2.85959,3497.0,3496.3,2.86015]
[1721654853386,0.992874,3496.9,3496.0,5.11827]
[1721654853715,2.85982,3496.8,3495.9,2.86044]
[1721654854020,3.20982,3496.8,3495.9,2.86044]
[1721654854787,3.20982,3496.8,3496.1,2.86026]
[1721654854994,0.7062304,3496.7,3496.3,2.86014]
[1721654855491,0.7062304,3496.7,3496.4,2.86007]
[1721654855823,0.7062304,3496.7,3496.2,2.86017]
[1721654856029,0.992874,3496.9,3495.6,2.4198]
[1721654856327,0.35,3497.0,3496.6,2.85986]
[1721654856497,3.0,3497.3,3496.6,2.85986]
[1721654857025,0.35,3497.2,3496.7,2.85979]
[1721654857193,3.0,3497.3,3496.6,2.85985]
[1721654857530,1.14025451,3497.2,3496.6,2.85985]
[1721654858626,3.99968451,3497.2,3496.4,2.86001]
[1721654858833,2.85966,3497.0,3496.2,2.86021]
[1721654858987,2.85966,3497.0,3496.0,10.17034]
[1721654859184,2.85966,3497.0,3496.2,2.86023]
[1721654859523,3.25967145,3496.9,3496.2,2.86023]
[1721654859880,3.25967145,3496.9,3496.3,2.86015]
[1721654860082,0.39999145,3496.9,3496.3,2.86015]
[1721654860398,0.39999145,3496.9,3496.0,7.31]
[1721654860724,0.39999145,3496.9,3496.4,2.86001]
[1721654861233,0.39999145,3496.9,3496.2,5.72038]
[1721654861524,0.39999145,3496.9,3495.8,7.53393]
[1721654861676,0.39999145,3496.9,3495.8,8.342323]
[1721654862120,1.14025451,3497.2,3495.8,5.481793]
[1721654862331,0.35,3497.0,3496.6,2.85992]
[1721654862543,1.14025451,3497.2,3496.6,2.85992]
[1721654863032,1.49025451,3497.2,3496.6,2.85992]
[1721654863323,0.35,3497.2,3496.6,2.85989]
[1721654863641,3.0,3497.3,3496.8,2.8597]
[1721654863780,3.0,3497.3,3496.6,2.85984]
[1721654863781,3.35,3497.3,3496.6,2.85984]
[1721654863985,2.88,3497.4,3496.9,2.85966]
[1721654864211,3.4987631,3497.4,3496.9,2.85966]
[1721654864624,3.4987631,3497.4,3496.8,2.85975]
[1721654865886,3.4987631,3497.4,3496.8,2.85969]
[1721654866134,3.4987631,3497.4,3497.0,2.85957]
[1721654866303,3.4987631,3497.4,3497.1,2.85948]
[1721654866634,3.4987631,3497.4,3496.8,2.85971]
[1721654866807,2.88,3497.4,3496.8,2.85971]
[1721654867431,2.88,3497.4,3497.0,2.85958]
[1721654868245,2.88,3497.4,3496.8,2.85971]
[1721654868751,2.88,3497.4,3496.4,5.34871]
[1721654868752,2.85943,3497.2,3496.4,5.34871]
[1721654868961,2.85943,3497.2,3496.5,2.85995]
[1721654869121,0.859871,3497.2,3496.6,2.85991]
[1721654872016,1.15644155,3497.2,3496.6,2.85991]
[1721654872254,1.15644155,3497.2,3496.6,5.71975]
[1721654872428,2.85938,3497.3,3496.6,5.71975]
[1721654872632,0.29655911,3497.3,3496.7,2.85977]
[1721654873060,0.29655911,3497.3,3496.8,5.32323]
[1721654873433,0.64655911,3497.3,3496.8,5.32323]
[1721654874037,0.64655911,3497.3,3496.6,2.85989]
[1721654874236,1.80358602,3497.3,3496.6,5.71975]
[1721654874624,1.80358602,3497.3,3496.7,2.85983]
[1721654875268,1.50702691,3497.3,3496.7,2.85983]
[1721654877169,0.81630757,3497.2,3496.7,2.85983]
[1721654878719,0.81630757,3497.2,3496.7,2.85977]
[1721654881633,0.81630757,3497.2,3496.7,5.71956]
[1721654882156,0.81630757,3497.2,3496.7,2.85977]
[1721654883066,1.30164102,3497.2,3496.5,2.85996]
[1721654883241,0.81630757,3497.1,3496.5,2.85994]
[1721654883553,0.81630757,3497.1,3496.5,5.71987]
[1721654883761,0.81630757,3497.1,3496.5,2.85993]
[1721654884097,2.85968,3496.9,3496.2,2.86024]
[1721654884380,2.85968,3496.9,3496.0,7.31]
[1721654884381,2.85984,3496.7,3496.0,10.17033]
[1721654884589,0.81630757,3496.6,3496.2,2.86023]
[1721654884748,0.81630757,3496.5,3496.2,2.86023]
[1721654884945,0.81630757,3496.4,3496.2,2.86023]
[1721654885192,0.81630757,3496.3,3496.2,2.86023]
[1721654885487,0.81637252,3496.8,3496.3,2.86014]
[1721654885650,0.81636947,3496.7,3496.3,2.86014]
[1721654886281,0.81636947,3496.7,3496.0,2.86035]
[1721654886502,2.85937,3497.3,3496.1,2.86032]
[1721654886503,0.81636947,3496.6,3496.1,2.86032]
[1721654886698,2.27485982,3497.2,3496.6,2.85986]
[1721654886699,5.27485982,3497.2,3496.6,2.85986]
[1721654886844,2.50999788,3497.1,3496.6,2.85986]
[1721654887050,0.8161029,3497.0,3496.6,2.85986]
[1721654888370,0.8161029,3497.0,3496.5,2.85995]
[1721654889202,0.8161029,3496.9,3496.5,2.85995]
[1721654889584,0.8161029,3496.9,3496.3,2.86012]
[1721654889585,3.6757829,3496.9,3496.3,2.86012]
[1721654889792,1.76778459,3496.8,3496.2,2.86022]
[1721654889956,0.81633489,3496.7,3496.2,2.86022]
[1721654890152,0.81633489,3496.7,3496.3,2.86009]
[1721654891704,0.81633489,3496.7,3496.4,2.86001]
[1721654892757,0.81633489,3496.7,3496.1,2.86028]
[1721654892959,0.81633489,3496.7,3496.3,2.8601]
[1721654893154,5.99155489,3496.6,3495.9,2.86044]
[1721654893395,0.81633489,3496.5,3496.1,2.86032]
[1721654894157,0.81633489,3496.5,3496.0,2.8604]
[1721654894590,0.81633489,3496.4,3495.8,2.8605]
[1721654894774,0.81633489,3496.3,3495.8,2.8605]
[1721654894979,0.81633489,3496.2,3495.8,2.86049]
[1721654895195,0.81633489,3496.1,3495.5,2.3587]
[1721654895401,0.81633489,3496.0,3495.9,2.86049]
[1721654895601,5.34812,3496.6,3495.9,2.86044]
[1721654895602,0.81633489,3496.5,3495.9,2.86044]
[1721654895775,5.34812,3496.6,3496.0,2.86036]
[1721654895776,0.81633489,3496.4,3496.0,2.86036]
[1721654895984,0.81633489,3496.3,3496.1,2.86027]
[1721654896191,0.81633489,3496.2,3496.1,2.86028]
[1721654896389,2.4882,3496.6,3496.0,2.86039]
[1721654896390,0.81633489,3496.5,3496.0,2.86039]
[1721654897612,0.81633489,3496.5,3496.1,2.8603]
[1721654897821,0.81633489,3496.4,3495.9,2.86045]
[1721654898046,0.81633489,3496.3,3496.0,2.8604]
[1721654898172,0.81633489,3496.2,3496.0,2.8604]
[1721654898374,0.81633489,3496.1,3495.9,2.86047]
[1721654898578,5.49971772,3496.6,3495.9,2.86047]
[1721654898579,0.81633489,3496.0,3495.9,2.86047]
[1721654899121,0.81633489,3496.4,3495.9,2.86047]
[1721654899328,0.81633489,3496.3,3495.7,2.86061]
[1721654899624,3.30813489,3496.3,3495.7,2.86061]
[1721654899776,0.81633489,3496.2,3495.7,2.86061]
[1721654900086,0.81633489,3496.2,3495.9,2.86044]
[1721654900291,0.81633489,3496.1,3495.9,2.86044]
[1721654900478,0.81633489,3496.0,3495.9,2.86044]
[1721654900823,0.82892225,3496.4,3496.0,2.8604]
[1721654900824,0.81613737,3496.3,3496.0,2.8604]
[1721654900981,0.8161365,3496.2,3496.0,2.8604]
[1721654901378,0.8161365,3496.2,3496.1,8.07056]
[1721654901614,0.81602203,3496.6,3496.4,2.86007]
[1721654901775,2.2809,3497.0,3496.4,2.86007]
[1721654901776,0.81601203,3496.5,3496.4,2.86007]
[1721654901990,0.81601203,3496.8,3496.4,2.86007]
[1721654902193,0.81601203,3496.7,3496.4,2.86007]
[1721654902921,0.81601203,3496.7,3496.5,2.86]
[1721654903121,0.81601203,3496.6,3496.5,2.86]
[1721654904414,0.81601203,3496.8,3496.5,2.86]
[1721654904828,0.81601203,3496.8,3496.7,2.85983]
[1721654905131,0.81601203,3496.9,3496.7,2.85983]
[1721654905283,0.81601203,3496.8,3496.5,2.85993]
[1721654905621,4.49390483,3497.2,3496.4,2.86003]
[1721654905622,0.81601203,3496.7,3496.4,2.86003]
[1721654905798,0.81601203,3496.6,3496.4,2.86003]
[1721654905981,2.7521295,3497.1,3496.6,2.8599]
[1721654906185,0.81623785,3497.0,3496.4,2.86003]
[1721654906508,3.67583785,3497.0,3496.4,2.86003]
[1721654906678,2.04498259,3496.9,3496.4,2.86003]
[1721654906882,0.81623785,3496.8,3496.4,2.86003]
[1721654908285,0.81623785,3496.8,3496.6,1.003]
[1721654909694,0.81623785,3496.8,3496.5,1.003]
[1721654910025,3.08503785,3496.8,3496.5,1.003]
[1721654910234,1.96893577,3496.7,3496.5,1.003]
[1721654910381,0.81623785,3496.6,3496.5,1.003]
[1721654911812,0.81623785,3496.6,3496.3,1.003]
[1721654911981,0.81623785,3496.6,3496.0,2.86033]
[1721654911982,0.81623785,3496.5,3496.1,1.003]
[1721654912179,0.81623785,3496.4,3496.1,1.003]
[1721654914531,3.67632785,3496.4,3496.1,1.003]
[1721654914688,0.81623785,3496.3,3496.1,1.003]
[1721654914896,0.81623785,3496.2,3496.1,1.003]
[1721654915120,0.81623785,3496.4,3496.1,1.003]
[1721654915293,0.81623785,3496.3,3496.1,1.003]
[1721654916399,0.81623785,3496.2,3496.1,1.003]
[1721654916600,3.23343785,3496.2,3495.8,2.8605]
[1721654916909,0.81623785,3496.1,3496.0,1.003]
[1721654918319,0.81623785,3496.1,3495.6,2.86073]
[1721654918522,0.81623785,3496.1,3495.9,1.003]
[1721654919030,0.81623785,3496.0,3495.9,1.003]
[1721654919226,0.81623785,3496.3,3495.9,1.003]
[1721654919419,1.89389087,3496.3,3496.1,1.003]
[1721654919604,0.81623785,3496.2,3496.1,1.003]
[1721654920129,0.81623785,3496.2,3495.6,2.86072]
[1721654920329,0.81623785,3496.2,3496.0,1.003]
[1721654925744,3.67648785,3496.2,3495.1,5.3548]
[1721654925949,3.67648785,3496.2,3495.2,1.003]
[1721654925950,2.86063,3495.8,3495.2,1.003]
[1721654926107,0.81623785,3495.7,3495.2,1.003]
[1721654926506,0.81623785,3495.7,3495.4,1.003]
[1721654927724,0.81623785,3495.6,3495.4,1.003]
[1721654927951,0.81623785,3495.5,3495.4,1.003]
[1721654928151,0.81623785,3495.9,3495.4,1.003]
[1721654928359,0.81593249,3495.8,3495.6,1.003]
[1721654929447,0.81593249,3495.8,3495.6,3.86373]
[1721654929665,3.0,3496.1,3495.6,3.86373]
[1721654929666,0.81593249,3495.7,3495.6,3.86373]
[1721654929942,0.81593249,3496.0,3495.6,3.86373]
[1721654930160,0.81593249,3496.0,3495.6,1.003]
[1721654930322,1.6327515,3496.0,3495.6,1.003]
[1721654930650,0.81593249,3495.9,3495.6,1.003]
[1721654937457,3.67642249,3495.9,3495.6,1.003]
[1721654937626,0.81593249,3495.8,3495.6,1.003]
[1721654937816,0.81593249,3495.7,3495.6,1.003]
[1721654938217,0.81593249,3495.9,3495.6,1.003]
[1721654938454,3.67723901,3496.0,3495.6,1.003]
[1721654938656,0.81599104,3495.9,3495.6,1.003]
[1721654939474,0.81599104,3495.9,3495.2,2.86102]
[1721654939761,3.67648104,3495.9,3495.6,1.003]
[1721654939916,1.56532105,3495.8,3495.6,1.003]
[1721654940119,0.81599104,3495.7,3495.6,1.003]
[1721654941462,0.81599104,3495.9,3495.6,1.003]
[1721654941621,0.81599104,3495.8,3495.6,1.003]
[1721654941984,0.81599104,3495.7,3495.6,1.003]
[1721654942130,5.86029,3496.2,3495.6,1.003]
[1721654942131,0.81599104,3495.9,3495.6,1.003]
[1721654942452,0.81599104,3495.8,3495.6,1.003]
[1721654942663,0.81599104,3495.7,3495.6,1.003]
[1721654942865,0.81599104,3496.0,3495.6,1.003]
[1721654943082,0.81599104,3495.9,3495.6,1.003]
[1721654944589,3.67649104,3495.9,3495.2,2.86104]
[1721654944755,0.81599104,3495.8,3495.4,1.003]
[1721654945079,3.67656104,3495.8,3495.4,1.003]
[1721654945254,0.81599104,3495.7,3495.4,1.003]
[1721654945459,1.82398362,3495.7,3495.4,1.003]
[1721654945657,0.81599104,3495.6,3495.4,1.003]
[1721654948286,0.81599104,3495.6,3495.0,2.86116]
[1721654948581,0.81599104,3495.6,3495.3,1.003]
[1721654949943,0.81599104,3495.6,3495.1,1.003]
[1721654950139,0.81599104,3495.6,3494.9,3.86423]
[1721654950140,3.2284881,3495.5,3494.9,3.86423]
[1721654950345,0.81599104,3495.4,3494.9,3.86423]
[1721654951404,0.81599104,3495.4,3495.1,1.003]
[1721654951585,0.81599104,3495.4,3495.3,1.003]
[1721654951999,1.49109326,3496.1,3495.5,2.86076]
[1721654952199,0.81584968,3496.0,3495.9,2.86049]
[1721654952497,0.81584968,3496.0,3495.9,3.266]
[1721654952864,0.81584968,3496.0,3495.9,6.12649]
[1721654954188,0.81584968,3496.1,3495.9,6.12649]
[1721654954506,0.81584968,3496.1,3496.0,2.86041]
[1721654955372,3.81584968,3496.5,3496.0,2.86041]
[1721654955703,0.81584968,3496.4,3495.9,3.266]
[1721654956498,0.81584968,3496.4,3495.9,1.003]
[1721654956677,3.67592968,3496.4,3495.9,1.003]
[1721654956877,0.81584968,3496.3,3495.9,1.003]
[1721654957087,3.67602968,3496.3,3495.9,1.003]
[1721654957292,3.67602968,3496.3,3495.7,1.003]
[1721654957293,2.12794607,3496.2,3495.7,1.003]
[1721654957481,0.81584968,3496.1,3495.7,1.003]
[1721654957973,0.81584968,3496.0,3495.8,2.86052]
[1721654958196,0.81584968,3495.9,3495.7,3.86364]
[1721654958509,0.81584968,3495.8,3495.7,3.86364]
[1721654958709,0.81605465,3496.3,3495.8,2.86054]
[1721654959024,0.81605465,3496.2,3495.7,1.003]
[1721654959349,0.81605465,3496.2,3495.7,3.86365]
[1721654960725,0.81605465,3496.2,3495.8,2.86057]
[1721654960931,0.81605465,3496.2,3495.7,1.003]
[1721654961516,3.67635465,3496.2,3495.7,1.003]
[1721654961685,4.58978018,3496.1,3495.5,2.86079]
[1721654961894,0.81605465,3496.0,3495.5,1.003]
[1721654962104,5.19817,3496.1,3495.3,2.338]
[1721654962105,0.81605465,3495.9,3495.3,3.86392]
[1721654962427,0.81605465,3495.8,3495.4,2.86089]
[1721654962620,0.81605465,3495.7,3495.4,2.86089]
[1721654962825,0.81605465,3495.6,3495.4,2.86089]
[1721654962990,2.86045,3496.0,3495.4,2.86089]
[1721654962991,0.81605465,3495.5,3495.4,2.86089]
[1721654963187,0.81605465,3495.9,3495.4,2.86089]
[1721654963393,1.8529193,3495.9,3495.4,2.86089]
[1721654963593,0.81605465,3495.8,3495.5,2.86077]
[1721654963904,0.81605465,3495.8,3495.5,3.86377]
[1721654964088,2.3378,3496.1,3495.7,1.003]
[1721654964293,0.81595145,3496.0,3495.7,1.003]
[1721654964518,4.35434181,3496.2,3495.7,1.003]
[1721654964519,0.81595145,3495.9,3495.7,1.003]
[1721654964689,0.81595145,3495.8,3495.7,3.86365]
[1721654964894,4.49407181,3496.2,3495.7,1.003]
[1721654964895,0.81595145,3496.1,3495.7,1.003]
[1721654965119,0.81595145,3496.0,3495.7,1.003]
[1721654965622,0.81595145,3495.9,3495.7,1.003]
[1721654965836,0.81595145,3495.8,3495.7,1.003]
[1721654966157,2.8605,3495.9,3495.3,3.86396]
[1721654966434,3.67655145,3495.8,3495.3,1.003]
[1721654966607,0.81595145,3495.7,3495.3,1.003]
[1721654966936,0.81595145,3495.7,3495.3,3.86392]
[1721654967142,0.81595145,3495.6,3495.3,3.86391]
[1721654967437,6.65989951,3496.0,3495.4,2.86089]
[1721654967438,0.81595145,3495.5,3495.4,2.86089]
[1721654967645,0.81595145,3495.5,3495.3,2.86091]
[1721654967646,0.81594892,3495.9,3495.5,2.86079]
[1721654967811,4.35361951,3496.1,3495.6,1.003]
[1721654967812,0.81594892,3495.8,3495.6,1.003]
[1721654968003,0.81594892,3495.7,3495.6,1.003]
[1721654968201,0.81594892,3496.0,3495.6,1.003]
[1721654968520,0.81594892,3495.9,3495.8,1.003]
[1721654968827,0.81594892,3495.9,3495.6,1.003]
[1721654969027,0.81594892,3495.8,3495.6,3.86373]
[1721654969196,0.81594892,3495.7,3495.6,3.86373]
[1721654969400,0.81594892,3496.1,3495.6,3.86373]
[1721654969656,0.81594892,3496.0,3495.6,3.86373]
[1721654969807,0.81594892,3495.9,3495.6,3.86373]
[1721654970009,0.81594892,3495.8,3495.6,3.86373]
[1721654970241,7.35388451,3496.2,3495.6,3.86373]
[1721654970242,0.81594892,3495.7,3495.6,3.86373]
[1721654970451,0.81594892,3496.1,3495.6,3.86373]
[1721654970651,0.81594892,3496.0,3495.6,3.86373]
[1721654970851,0.81594892,3495.9,3495.6,3.86373]
[1721654971016,7.35388451,3496.2,3495.6,3.86373]
[1721654971017,0.81594892,3495.8,3495.6,3.86373]
[1721654971220,0.81594892,3495.7,3495.5,5.20939]
[1721654971557,5.86024,3496.2,3495.5,5.20939]
[1721654971558,0.81594892,3495.6,3495.5,5.20939]
[1721654971851,0.81608969,3495.9,3495.6,2.86072]
[1721654972011,5.86024,3496.2,3495.5,5.20939]
[1721654972012,0.81608337,3495.8,3495.5,5.20939]
[1721654972212,0.81608337,3495.7,3495.5,5.20939]
[1721654972450,0.81608337,3495.6,3495.5,5.20939]
[1721654972758,0.81608337,3496.0,3495.5,6.21235]
[1721654973065,0.81608337,3495.9,3495.5,6.21235]
[1721654973264,0.81608337,3495.8,3495.5,6.21235]
[1721654973569,0.81608337,3495.7,3495.5,9.0731]
[1721654973774,0.81608337,3495.6,3495.5,6.21235]
[1721654973978,0.81598057,3496.0,3495.6,2.86071]
[1721654974181,0.81597926,3495.9,3495.6,2.86071]
[1721654974341,0.81597926,3495.8,3495.6,2.86071]
[1721654974535,0.81597926,3495.7,3495.6,2.86071]
[1721654975127,0.81597926,3496.1,3495.6,2.86071]
[1721654975328,0.81597926,3496.0,3495.6,2.86071]
[1721654975526,0.81597926,3495.9,3495.6,2.86071]
[1721654975752,2.10811038,3496.1,3495.5,6.21241]
[1721654975753,0.81597926,3495.8,3495.5,6.21241]
[1721654975955,0.81597926,3495.7,3495.5,6.21241]
[1721654976169,4.96844038,3496.1,3495.5,6.21241]
[1721654976170,0.81597926,3495.6,3495.5,6.21241]
[1721654976327,0.81597926,3495.6,3495.5,3.3516]
[1721654976528,0.81597926,3495.6,3495.5,3.86382]
[1721654977363,0.81597926,3496.0,3495.5,3.86382]
[1721654977570,1.69442122,3495.9,3495.5,3.86382]
[1721654977727,0.81597926,3495.8,3495.5,3.86382]
[1721654978073,0.81597926,3495.8,3495.3,2.86098]
[1721654978275,0.81597926,3495.8,3495.3,3.86398]
[1721654978647,0.81597926,3495.7,3495.3,3.86398]
[1721654978840,0.81597926,3495.6,3495.3,3.86398]
[1721654979078,0.81597926,3495.5,3495.3,3.86398]
[1721654979376,0.81597926,3495.4,3495.3,3.86398]
[1721654979573,0.81608113,3495.8,3495.4,2.86089]
[1721654979732,0.81608112,3495.7,3495.4,2.86089]
[1721654979931,0.81608112,3495.6,3495.4,2.86089]
[1721654980170,0.81608112,3495.5,3495.4,2.86089]
[1721654980541,0.81608112,3495.8,3495.3,1.003]
[1721654980752,0.81608112,3495.7,3495.3,3.86397]
[1721654980979,0.81608112,3495.6,3495.3,3.86397]
[1721654981180,0.81608112,3495.5,3495.3,3.86397]